bitfinex-derivatives/quotes_ETHF0:USTF0_20260116
["timestamp","ask_amount","ask_price","bid_price","bid_amount"]
[1768573627267,0.00286606,3312.8,3312.0,0.14142446]
[1768573627577,1.21859243,3313.4,3312.0,0.14142446]
[1768573627774,0.92675943,3313.3,3312.0,0.14142446]
[1768573627983,0.92675943,3313.2,3312.2,0.14142446]
[1768573628280,0.92675943,3313.1,3312.2,0.14142446]
[1768573628472,0.00220846,3313.1,3312.2,0.14142446]
[1768573632274,1.36690284,3314.1,3312.2,0.14142446]
[1768573632478,0.92681298,3314.0,3312.4,0.14142446]
[1768573632681,0.1509,3314.6,3312.8,0.14142446]
[1768573632878,0.92668288,3314.5,3312.8,0.14142446]
[1768573633082,1.21598284,3314.0,3311.8,0.14142446]
[1768573633278,1.21950916,3314.0,3312.2,0.29242446]
[1768573633479,1.21598284,3313.6,3312.2,0.29242446]
[1768573633674,1.21598284,3313.6,3312.3,40.8]
[1768573634579,1.21950916,3314.0,3312.3,40.94142446]
[1768573634779,0.92639226,3313.9,3312.3,40.94142446]
[1768573634979,0.92639226,3313.8,3312.3,40.94142446]
[1768573635182,0.92639226,3313.7,3312.3,0.14142446]
[1768573635382,1.21950916,3314.0,3312.3,0.14142446]
[1768573635688,0.92637822,3313.9,3312.3,0.14142446]
[1768573635882,0.92637822,3313.8,3312.3,0.14142446]
[1768573636083,0.92637822,3313.7,3312.3,0.14142446]
[1768573636383,1.21950916,3314.0,3312.3,0.14142446]
[1768573636581,0.92637047,3313.9,3312.3,0.14142446]
[1768573636788,0.92637047,3313.8,3312.3,0.14142446]
[1768573636989,0.92637047,3313.7,3312.3,0.14142446]
[1768573637288,0.00352632,3314.0,3312.3,0.14142446]
[1768573637487,0.9264029,3313.9,3312.3,0.14142446]
[1768573637692,0.9264029,3313.8,3312.3,0.14142446]
[1768573637893,0.9264029,3313.7,3312.3,0.14142446]
[1768573638189,0.00352632,3314.0,3312.3,0.14142446]
[1768573638390,0.92659524,3313.9,3312.3,0.14142446]
[1768573638580,0.92659524,3313.8,3312.3,0.14142446]
[1768573638784,0.92659524,3313.7,3312.3,0.14142446]
[1768573639092,1.21950916,3314.0,3312.3,0.14142446]
[1768573639288,0.92650766,3313.9,3312.3,0.14142446]
[1768573639484,0.92650766,3313.8,3312.3,0.14142446]
[1768573639684,0.92650766,3313.7,3312.3,0.14142446]
[1768573639881,1.21950916,3314.0,3312.3,0.14142446]
[1768573640085,0.92667565,3313.9,3312.3,0.14142446]
[1768573640283,0.92667565,3313.8,3312.3,0.14142446]
[1768573640487,0.92667565,3313.7,3312.3,0.14142446]
[1768573640705,0.92667565,3313.6,3312.3,0.14142446]
[1768573640995,1.21598284,3313.2,3311.9,0.14142446]
[1768573641897,1.21598284,3313.6,3311.9,0.14142446]
[1768573642104,0.92725343,3313.5,3311.9,0.14142446]
[1768573642290,0.92725343,3313.4,3311.9,0.14142446]
[1768573642587,0.92725343,3313.3,3311.9,0.14142446]
[1768573642788,0.92725343,3313.2,3311.9,0.14142446]
[1768573642996,1.21598284,3313.6,3311.9,0.14142446]
[1768573643199,0.92734832,3313.5,3311.9,0.14142446]
[1768573643399,0.92734832,3313.4,3311.9,0.14142446]
[1768573643598,0.92734832,3313.3,3311.9,0.14142446]
[1768573643900,1.21598284,3313.6,3311.9,0.14142446]
[1768573644200,0.92743309,3313.5,3311.9,0.14142446]
[1768573644400,0.92743309,3313.4,3311.9,0.14142446]
[1768573644600,1.21598284,3313.6,3311.9,0.14142446]
[1768573644794,0.92756079,3313.5,3311.9,0.14142446]
[1768573644989,1.21598284,3313.6,3311.9,0.14142446]
[1768573644990,0.92756079,3313.4,3311.9,0.14142446]
[1768573645200,1.21598284,3313.2,3311.8,0.15407882]
[1768573645401,0.92756079,3313.1,3311.8,0.15407882]
[1768573648207,0.92756079,3313.1,3311.8,0.29664708]
[1768573648407,0.92756079,3313.0,3311.8,0.29664708]
[1768573648602,0.92756079,3312.9,3311.8,0.29664708]
[1768573648906,1.21598284,3313.4,3311.8,0.29664708]
[1768573649107,0.9281412,3313.3,3311.8,0.29664708]
[1768573649313,0.9281412,3313.2,3311.8,0.29664708]
[1768573649516,0.9281412,3313.1,3311.8,0.29664708]
[1768573649714,0.9281412,3313.0,3311.8,0.29664708]
[1768573649915,0.9281412,3312.9,3311.8,0.29664708]
[1768573650106,1.21598284,3313.4,3311.8,0.29664708]
[1768573650307,0.92829584,3313.3,3311.8,0.29664708]
[1768573650507,0.92829584,3313.2,3311.8,0.29664708]
[1768573650709,0.92829584,3313.1,3311.8,0.29664708]
[1768573650911,0.92829584,3313.0,3311.8,0.29664708]
[1768573651214,0.92829584,3312.9,3311.8,0.29664708]
[1768573651716,1.21598284,3313.1,3311.8,0.29664708]
[1768573651917,0.92864079,3313.0,3311.8,0.29664708]
[1768573652117,0.92864079,3312.9,3311.8,0.29664708]
[1768573652317,1.21598284,3313.1,3311.8,0.29664708]
[1768573652517,0.92882526,3313.0,3311.8,0.29664708]
[1768573652717,0.92882526,3312.9,3311.8,0.29664708]
[1768573653018,1.21598284,3313.1,3311.8,0.29664708]
[1768573653214,0.92882539,3313.0,3311.8,0.29664708]
[1768573653419,0.92882539,3312.9,3311.8,0.15407882]
[1768573653722,1.21598284,3313.1,3311.8,0.15407882]
[1768573654019,1.21598284,3312.7,3311.8,0.00305882]
[1768573654214,0.92908128,3312.6,3311.8,0.00305882]
[1768573654520,1.21598284,3313.0,3311.4,0.14005297]
[1768573654819,0.92901766,3312.9,3311.4,0.14005297]
[1768573655020,0.92901766,3312.8,3311.4,0.14005297]
[1768573655218,0.92901766,3312.7,3311.4,0.14005297]
[1768573655520,0.92901766,3312.6,3311.4,0.14263766]
[1768573655722,1.21598284,3313.0,3311.4,0.14263766]
[1768573656021,0.92892381,3312.9,3311.4,0.14263766]
[1768573656214,0.92892381,3312.8,3311.4,0.14263766]
[1768573656512,0.92892381,3312.7,3311.4,0.14263766]
[1768573656714,0.92892381,3312.6,3311.4,0.14263766]
[1768573656915,1.21598284,3313.0,3311.4,0.14263766]
[1768573657114,0.9287258,3312.9,3311.4,0.14263766]
[1768573657316,0.9287258,3312.8,3311.4,0.14263766]
[1768573657511,0.9287258,3312.7,3311.4,0.14263766]
[1768573657712,1.21598284,3313.0,3311.4,0.14263766]
[1768573657912,0.92861552,3312.9,3311.4,0.14263766]
[1768573658113,0.92861552,3312.8,3311.4,0.14263766]
[1768573658414,1.21598284,3312.6,3311.4,0.00258469]
[1768573659318,1.21598284,3312.6,3311.4,0.14263766]
[1768573660113,0.92838217,3312.5,3311.4,0.14263766]
[1768573660314,1.21598284,3312.2,3311.1,0.15105]
[1768573660913,1.21598284,3312.2,3311.0,0.14005297]
[1768573661117,1.21598284,3312.2,3310.6,0.14005297]
[1768573661322,1.21598284,3312.2,3310.6,0.14239575]
[1768573663525,0.92770624,3312.1,3310.6,0.14239575]
[1768573663726,1.21598284,3312.2,3310.6,0.14239575]
[1768573663919,0.92770689,3312.1,3310.6,0.14239575]
[1768573664226,1.21598284,3312.2,3310.6,0.14239575]
[1768573664530,0.92770702,3312.1,3310.6,0.14239575]
[1768573664823,1.21598284,3312.2,3310.6,0.14239575]
[1768573665022,0.9275289,3312.1,3310.6,0.14239575]
[1768573665216,1.21598284,3312.2,3310.6,0.14239575]
[1768573665417,0.92752854,3312.1,3310.6,0.14239575]
[1768573665621,1.21598284,3312.2,3310.6,0.14239575]
[1768573665811,0.92741614,3312.1,3310.6,0.14239575]
[1768573666015,1.21598284,3312.2,3310.6,0.14239575]
[1768573666225,0.92741614,3312.1,3310.6,0.14239575]
[1768573666415,1.21598284,3312.2,3310.6,0.14239575]
[1768573666616,0.92735414,3312.1,3310.6,0.14239575]
[1768573666817,0.9273543,3312.0,3310.6,0.14239575]
[1768573667017,1.21598284,3312.2,3310.6,0.14239575]
[1768573667217,0.9273996,3312.1,3310.6,0.14239575]
[1768573667426,0.9273996,3312.0,3310.6,0.14239575]
[1768573667627,0.9273996,3311.9,3310.6,0.14239575]
[1768573667825,1.21598284,3312.2,3310.6,0.14239575]
[1768573668126,0.92731405,3312.1,3310.6,0.14239575]
[1768573668326,0.92731405,3312.0,3310.6,0.14239575]
[1768573668528,0.92731405,3311.9,3310.6,0.14239575]
[1768573668732,1.21598284,3312.2,3310.6,0.14239575]
[1768573668923,0.92725812,3312.1,3310.6,0.14239575]
[1768573669124,0.92725812,3312.0,3310.6,0.14239575]
[1768573669325,0.92725812,3311.9,3310.6,0.14239575]
[1768573669526,1.21598284,3312.2,3310.6,0.14239575]
[1768573669722,0.9272677,3312.1,3310.6,0.14239575]
[1768573669923,0.9272677,3312.0,3310.6,0.14239575]
[1768573670127,0.9272677,3311.9,3310.6,0.14239575]
[1768573670322,1.21598284,3312.2,3310.6,0.14239575]
[1768573670531,0.92734293,3312.1,3310.6,0.14239575]
[1768573670731,0.92734293,3312.0,3310.6,0.14239575]
[1768573670931,1.21598284,3312.2,3310.6,0.14239575]
[1768573671235,0.92731109,3312.1,3310.6,0.14239575]
[1768573671424,0.15097,3312.9,3311.0,0.13600537]
[1768573671726,0.92721251,3312.8,3311.1,0.13600537]
[1768573671923,0.92721251,3312.7,3311.1,0.13600537]
[1768573672126,0.92721251,3312.6,3311.1,0.13600537]
[1768573672321,1.21598284,3312.6,3311.1,0.13600537]
[1768573672730,1.21598284,3312.6,3311.1,0.28705537]
[1768573674238,1.21598284,3312.8,3311.2,0.13600537]
[1768573674442,0.92768823,3312.7,3311.2,0.13600537]
[1768573674628,0.92768823,3312.6,3311.2,0.13600537]
[1768573674827,0.92768823,3312.5,3311.2,0.13600537]
[1768573675028,1.21598284,3312.8,3311.2,0.13600537]
[1768573675233,0.92768806,3312.7,3311.2,0.13600537]
[1768573675427,0.92768806,3312.6,3311.2,0.13600537]
[1768573675731,0.92768806,3312.5,3311.2,0.13600537]
[1768573675934,2.14385918,3312.4,3311.1,0.15105]
[1768573676129,1.21598284,3312.4,3311.1,0.15105]
[1768573676622,0.92799569,3312.3,3310.8,0.13600537]
[1768573676827,1.21598284,3312.4,3310.8,0.13600537]
[1768573677127,1.21598284,3312.0,3310.8,0.13600537]
[1768573678735,1.21598284,3312.4,3310.8,0.13600537]
[1768573679036,0.92821506,3312.3,3310.8,0.13600537]
[1768573679230,1.21598284,3312.4,3310.8,0.13600537]
[1768573679429,0.92821539,3312.3,3310.8,0.13600537]
[1768573679629,0.92821539,3312.2,3310.8,0.13600537]
[1768573679829,1.21598284,3312.4,3310.8,0.13600537]
[1768573680035,0.92837364,3312.3,3310.8,0.13600537]
[1768573680231,6.49,3312.7,3311.1,0.13600537]
[1768573680432,1.21950916,3314.0,3312.1,0.28701537]
[1768573680433,0.00352632,3314.0,3312.1,0.28701537]
[1768573680627,0.92819185,3313.9,3312.3,0.13600537]
[1768573680829,0.92819185,3313.8,3312.4,0.13600537]
[1768573681029,0.00352632,3314.0,3312.4,0.13600537]
[1768573681232,0.92825602,3313.9,3312.4,0.13600537]
[1768573681535,0.00352632,3314.0,3312.4,0.13600537]
[1768573681839,0.92834368,3313.9,3312.5,0.13600537]
[1768573682040,0.00352632,3314.0,3312.5,0.13600537]
[1768573682334,0.92784646,3313.9,3312.5,0.13600537]
[1768573682541,0.00352632,3314.0,3312.5,0.13600537]
[1768573682731,1.21598284,3313.3,3312.0,0.13600537]
[1768573682941,1.21598284,3313.3,3311.7,0.15103]
[1768573683240,1.21598284,3312.9,3311.6,0.13600537]
[1768573683426,0.07041053,3313.4,3311.6,0.13600537]
[1768573683633,0.92795956,3313.3,3311.2,0.13600537]
[1768573683835,0.99837009,3313.2,3311.2,0.13600537]
[1768573684035,0.92795956,3313.1,3311.2,0.13600537]
[1768573684235,0.99837009,3313.1,3311.2,0.13600537]
[1768573684534,0.92795956,3313.0,3311.2,0.13600537]
[1768573684945,0.92795956,3313.0,3311.3,0.13600537]
[1768573685146,0.92795956,3312.9,3311.3,0.13600537]
[1768573685344,0.92795956,3312.8,3311.3,0.13600537]
[1768573685641,0.15096,3313.2,3311.3,0.13600537]
[1768573685642,0.92795956,3312.7,3311.4,0.13600537]
[1768573685846,0.15096,3313.2,3311.4,0.13600537]
[1768573686039,0.92804409,3313.1,3311.4,0.13600537]
[1768573686346,0.92804409,3313.0,3311.4,0.13600537]
[1768573686648,0.92804409,3312.9,3311.4,0.13600537]
[1768573686948,0.15096,3313.2,3311.4,0.13600537]
[1768573687141,0.92743965,3313.1,3311.4,0.13600537]
[1768573687338,0.92743965,3313.0,3311.4,0.13600537]
[1768573687537,0.92743965,3312.9,3311.4,0.13600537]
[1768573687746,0.07058512,3313.6,3311.4,0.13600537]
[1768573687947,0.92743233,3313.5,3311.4,0.13600537]
[1768573688241,0.92743233,3313.4,3311.4,0.13600537]
[1768573688433,0.92743233,3313.3,3311.4,0.13600537]
[1768573688946,0.0723391,3313.1,3311.3,0.15105]
[1768573689151,0.92743233,3313.0,3311.3,0.15105]
[1768573689350,0.92743233,3313.0,3311.3,0.28705537]
[1768573689847,0.92743233,3313.0,3310.3,3.026]
[1768573689848,0.0723391,3312.9,3310.7,0.13600537]
[1768573690047,0.92743233,3312.8,3310.8,0.13600537]
[1768573690447,1.86160219,3312.6,3310.8,0.13600537]
[1768573690648,0.92743233,3312.5,3310.8,0.13600537]
[1768573691937,1.00003142,3312.5,3310.7,40.8]
[1768573692250,0.92743233,3312.4,3310.6,0.15341278]
[1768573693453,1.86160219,3312.1,3310.6,0.00234278]
[1768573693649,0.92743233,3312.0,3310.6,0.00234278]
[1768573694156,0.92743233,3312.0,3310.6,0.13834815]
[1768573694357,0.151,3312.4,3310.6,0.13834815]
[1768573694655,0.92752588,3312.3,3310.7,0.13600537]
[1768573694857,0.92752588,3312.2,3310.7,0.13600537]
[1768573695155,0.92752588,3312.1,3310.7,0.13600537]
[1768573695347,0.06909455,3312.9,3310.8,0.13600537]
[1768573695549,0.92748778,3312.8,3310.8,0.13600537]
[1768573695750,1.07846778,3312.7,3310.8,0.13600537]
[1768573695951,2.78908997,3312.6,3310.8,0.13600537]
[1768573696156,0.92748778,3312.5,3310.8,0.13600537]
[1768573697849,1.07847778,3312.5,3310.8,0.13600537]
[1768573698057,0.92748778,3312.4,3310.8,0.13600537]
[1768573698960,1.07848778,3312.4,3310.6,0.00234278]
[1768573699157,0.92748778,3312.3,3310.6,0.00234278]
[1768573701061,1.07848778,3312.3,3310.6,0.00234278]
[1768573701257,0.92748778,3312.2,3310.6,0.00234278]
[1768573705264,1.21731847,3311.4,3310.6,0.00234278]
[1768573705566,1.21948797,3311.4,3310.6,0.00234278]
[1768573708369,1.21731847,3311.3,3310.6,0.00234278]
[1768573708679,1.21731847,3311.1,3310.4,0.13600537]
[1768573709474,1.21731847,3311.1,3310.2,0.15109]
[1768573709680,1.21731847,3311.1,3310.4,0.00271438]
[1768573710277,0.0021695,3311.4,3310.4,0.00271438]
[1768573710478,1.21731847,3311.2,3310.4,0.00271438]
[1768573711478,1.21948797,3311.4,3310.4,0.00271438]
[1768573713372,0.0021695,3311.4,3310.4,0.00271438]
[1768573718985,0.0021695,3311.4,3310.4,0.29299248]
[1768573719187,0.0021695,3311.4,3310.5,0.1391881]
[1768573719986,0.14310077,3312.3,3310.5,0.1391881]
[1768573720189,1.26045951,3312.2,3310.5,0.1391881]
[1768573720388,1.26045951,3312.1,3310.5,0.1391881]
[1768573720594,0.93052353,3312.0,3310.5,0.1391881]
[1768573720786,0.93052353,3311.9,3310.5,0.1391881]
[1768573721088,0.93052353,3311.8,3310.5,0.1391881]
[1768573723086,0.93052353,3311.8,3310.6,0.1391881]
[1768573723787,0.93052353,3311.8,3310.7,0.1391881]
[1768573724488,0.00361465,3311.9,3310.9,0.1391881]
[1768573724785,0.00361465,3311.9,3310.8,0.15107]
[1768573725287,0.00361465,3311.9,3310.8,0.2902581]
[1768573725586,0.00361465,3311.9,3310.9,0.1391881]
[1768573729890,0.00361465,3311.9,3310.8,0.15107]
[1768573730893,0.00361465,3311.9,3311.0,0.15106]
[1768573731092,0.00361465,3311.9,3311.0,0.2902481]
[1768573733390,1.21642541,3312.7,3311.3,1.36053847]
[1768573733582,0.92995469,3312.6,3311.3,1.36053847]
[1768573733779,0.92995469,3312.5,3311.5,1.21642541]
[1768573733983,0.13522035,3313.3,3311.7,1.36053847]
[1768573734184,0.92987069,3313.2,3311.8,40.94411306]
[1768573734490,1.21642541,3313.0,3311.8,40.94411306]
[1768573734692,0.92987069,3312.9,3311.8,40.94411306]
[1768573734893,0.92987069,3312.8,3311.8,40.94411306]
[1768573735090,1.21642541,3313.0,3311.8,40.94411306]
[1768573735282,0.92905707,3312.9,3311.8,0.14411306]
[1768573735480,0.92905707,3312.8,3311.8,0.14411306]
[1768573735789,0.00358085,3313.2,3311.8,0.14411306]
[1768573735980,1.21642541,3313.0,3311.8,0.14411306]
[1768573736183,0.92900093,3312.9,3311.8,0.14411306]
[1768573736380,1.21642541,3313.0,3311.8,0.14411306]
[1768573736594,0.9285929,3312.9,3311.8,0.14411306]
[1768573736787,1.21642541,3313.0,3311.8,0.14411306]
[1768573736987,0.92859307,3312.9,3311.8,0.14411306]
[1768573737189,1.21642541,3313.0,3311.8,0.14411306]
[1768573737389,1.21642541,3312.8,3311.8,0.14411306]
[1768573737588,1.21642541,3312.8,3311.6,40.95103]
[1768573738094,1.21642541,3312.6,3311.6,40.95103]
[1768573738297,1.21642541,3312.6,3311.6,0.15103]
[1768573738795,1.21642541,3312.4,3311.6,0.15103]
[1768573739183,0.13522035,3312.9,3311.6,0.15103]
[1768573739184,1.21642541,3312.2,3311.6,0.15103]
[1768573739489,1.21642541,3312.3,3311.0,0.29517306]
[1768573739892,1.21642541,3312.3,3311.1,40.8]
[1768573740286,0.13522035,3312.9,3311.2,0.14411306]
[1768573740484,1.21642541,3312.3,3311.1,0.15105]
[1768573742897,1.21642541,3312.4,3311.1,0.15105]
[1768573743086,1.21642541,3312.4,3311.1,1.36747541]
[1768573743287,1.21642541,3312.6,3311.2,0.15105]
[1768573743488,1.21642541,3312.6,3311.3,0.14411306]
[1768573743797,1.21642541,3312.6,3311.3,1.36053847]
[1768573744505,1.21642541,3312.8,3311.3,1.36053847]
[1768573744697,0.92802515,3312.7,3311.3,1.36053847]
[1768573744904,1.21642541,3313.0,3311.5,1.36053847]
[1768573745109,0.92801093,3312.9,3311.5,1.36053847]
[1768573745395,0.00358085,3313.2,3311.8,1.21642541]
[1768573745588,2.14446124,3313.1,3311.7,0.14411306]
[1768573745786,1.21642541,3312.9,3311.7,0.14411306]
[1768573747197,1.21642541,3313.1,3311.7,0.14411306]
[1768573747403,0.92805799,3313.0,3311.7,0.14411306]
[1768573747701,1.22000626,3313.2,3311.8,1.36053847]
[1768573747889,0.92800891,3313.1,3311.8,1.36053847]
[1768573748091,1.22000626,3313.2,3311.8,1.36053847]
[1768573748292,0.92812937,3313.1,3312.0,1.21642541]
[1768573748503,0.00358085,3313.2,3312.0,1.36743541]
[1768573750303,0.00358085,3313.2,3312.0,0.29512306]
[1768573754004,0.00358085,3313.2,3312.1,0.14411306]
[1768573754901,6.49,3313.9,3312.3,0.14411306]
[1768573755107,0.92834292,3313.8,3312.3,0.29511306]
[1768573755301,0.92834292,3313.7,3312.3,0.29511306]
[1768573755605,0.92834292,3313.6,3312.3,0.29511306]
[1768573755798,1.35115769,3314.0,3312.3,0.29511306]
[1768573755998,0.92819789,3313.9,3312.3,0.29511306]
[1768573756199,0.92819789,3313.8,3312.3,0.29511306]
[1768573756400,0.92819789,3313.7,3312.3,0.29511306]
[1768573756598,0.92819789,3313.6,3312.3,0.29511306]
[1768573756797,1.35373906,3314.0,3312.3,0.29511306]
[1768573757005,0.9281093,3313.9,3312.3,0.29511306]
[1768573757204,0.9281093,3313.8,3312.3,0.29511306]
[1768573757409,1.21593734,3313.0,3311.7,0.14411306]
[1768573757617,6.64093,3313.9,3312.0,0.14411306]
[1768573757908,0.92813511,3313.8,3312.3,0.14411306]
[1768573758099,6.49,3313.9,3312.3,0.14411306]
[1768573758299,0.92816594,3313.8,3312.3,0.14411306]
[1768573758494,6.49,3313.9,3312.3,0.14411306]
[1768573758696,0.92796876,3313.8,3312.3,0.14411306]
[1768573758895,6.49,3313.9,3312.3,0.14411306]
[1768573759113,0.92796854,3313.8,3312.4,0.14411306]
[1768573759308,6.49,3313.9,3312.6,0.14411306]
[1768573759510,6.49,3313.9,3312.6,0.29509306]
[1768573759816,6.49,3313.9,3312.7,0.14411306]
[1768573760009,0.00258137,3314.0,3312.7,0.14411306]
[1768573760916,0.00258137,3314.0,3312.9,0.14411306]
[1768573761114,0.00258137,3314.0,3312.9,0.29771903]
[1768573761309,0.00258137,3314.0,3313.0,0.1372785]
[1768573762210,0.00258137,3314.0,3313.3,0.1372785]
[1768573762420,3.02660549,3315.2,3313.4,0.1372785]
[1768573762612,0.92685027,3315.1,3313.4,0.1372785]
[1768573762810,0.92685027,3315.0,3313.4,0.1372785]
[1768573763119,0.92685027,3314.9,3313.4,0.1372785]
[1768573763313,2.14278761,3314.8,3313.4,0.1372785]
[1768573763605,1.21593734,3314.8,3313.4,0.1372785]
[1768573763810,0.92653515,3314.7,3313.4,0.1372785]
[1768573764118,1.21593734,3314.8,3313.4,0.1372785]
[1768573764916,1.35360549,3314.8,3313.3,0.15095]
[1768573765215,0.13766815,3314.7,3312.9,0.13991447]
[1768573765419,1.21593734,3314.4,3312.9,0.13991447]
[1768573765610,1.21593734,3314.5,3312.9,0.13991447]
[1768573765811,1.35360549,3314.5,3312.9,0.13991447]
[1768573766610,1.21593734,3314.1,3312.9,0.00263597]
[1768573766922,1.35360549,3314.1,3312.9,0.00263597]
[1768573769825,0.13136205,3314.0,3312.9,0.00263597]
[1768573770726,1.21593734,3314.3,3312.9,0.00263597]
[1768573771024,0.92587527,3314.2,3312.9,0.00263597]
[1768573771223,0.13136205,3314.4,3312.9,0.00263597]
[1768573771426,0.92604032,3314.3,3312.9,0.00263597]
[1768573771626,0.13136205,3314.4,3312.9,0.00263597]
[1768573771627,0.92604032,3314.2,3312.9,0.00263597]
[1768573771927,1.21593734,3314.1,3312.9,0.00263597]
[1768573772722,1.21593734,3313.3,3312.0,0.15101]
[1768573773321,0.28228205,3314.1,3312.1,0.28390655]
[1768573773525,0.13136205,3313.9,3312.1,0.28390655]
[1768573773719,0.13136205,3313.7,3312.1,0.15444402]
[1768573773923,0.92661787,3313.6,3312.1,0.15444402]
[1768573776127,0.92661787,3313.6,3312.2,0.13289655]
[1768573776326,0.15092,3314.0,3312.2,0.28389655]
[1768573776522,0.92732928,3313.9,3312.3,0.28389655]
[1768573776729,0.92732928,3313.8,3312.4,0.13289655]
[1768573776927,0.92732928,3313.7,3312.4,0.13289655]
[1768573777131,0.13136205,3314.2,3312.4,0.13289655]
[1768573777324,1.05878084,3314.1,3312.4,0.13289655]
[1768573777524,0.92741879,3314.0,3312.4,0.13289655]
[1768573778227,0.92741879,3314.0,3312.5,0.13289655]
[1768573778417,0.92741879,3313.9,3312.5,0.13289655]
[1768573778620,0.92741879,3313.8,3312.5,0.13289655]
[1768573778818,0.92741879,3313.7,3312.5,0.13289655]
[1768573779019,0.13136205,3314.2,3312.5,0.13289655]
[1768573779218,0.92781275,3314.1,3312.5,0.28388655]
[1768573779418,0.92781275,3314.0,3312.6,0.28388655]
[1768573779619,0.13136205,3314.2,3312.6,0.28388655]
[1768573779926,0.92786762,3314.1,3312.6,0.28388655]
[1768573780118,0.92786762,3314.0,3312.6,0.28388655]
[1768573780326,0.13136205,3314.2,3312.6,0.28388655]
[1768573780528,0.92798286,3314.1,3312.6,0.28388655]
[1768573780728,0.92798286,3314.0,3312.6,0.28388655]
[1768573780932,0.13136205,3314.2,3312.6,0.28388655]
[1768573781231,0.92798236,3314.1,3312.6,0.28388655]
[1768573781528,0.92798236,3314.0,3312.6,0.28388655]
[1768573781728,0.13136205,3314.6,3312.7,0.13289655]
[1768573781925,1.05948257,3314.5,3312.7,0.13289655]
[1768573782123,0.92812052,3314.4,3312.7,0.13289655]
[1768573782324,0.13136205,3314.3,3312.6,0.15099]
[1768573782520,1.05948257,3314.2,3312.6,0.15099]
[1768573782726,0.13136205,3314.0,3312.6,0.15099]
[1768573782931,1.05948257,3313.9,3312.2,0.13289655]
[1768573783231,0.92812052,3313.8,3312.2,0.13289655]
[1768573783630,0.13136205,3313.7,3312.1,0.00343402]
[1768573784426,0.28227205,3314.2,3312.1,0.13633057]
[1768573784633,0.13136205,3314.0,3312.1,0.13633057]
[1768573784833,0.92866744,3313.9,3312.1,0.13633057]
[1768573785034,0.92866744,3313.8,3312.1,0.13633057]
[1768573785339,0.15368544,3314.9,3312.9,0.28386655]
[1768573785538,0.92861732,3314.8,3313.0,0.13289655]
[1768573785836,0.92861732,3314.7,3313.0,0.13289655]
[1768573786030,0.92861732,3314.6,3313.0,0.13289655]
[1768573786234,0.92861732,3314.5,3313.0,0.13289655]
[1768573786437,0.92861732,3314.4,3313.0,0.13289655]
[1768573786735,0.92861732,3314.3,3313.0,0.13289655]
[1768573786928,0.15368544,3314.9,3313.0,0.13289655]
[1768573787132,0.92861297,3314.8,3313.0,0.13289655]
[1768573787438,0.92861297,3314.7,3313.0,0.13289655]
[1768573787737,0.92861297,3314.6,3313.0,0.13289655]
[1768573787927,0.92861297,3314.5,3313.0,0.13289655]
[1768573788127,0.92861297,3314.4,3312.9,0.15097]
[1768573788330,0.13136205,3314.5,3312.9,0.15097]
[1768573788638,0.92861021,3314.4,3312.9,0.15097]
[1768573788837,0.13136205,3314.5,3312.9,0.15097]
[1768573789041,0.92861089,3314.4,3312.9,0.15097]
[1768573789340,0.15368544,3314.9,3313.0,0.28386655]
[1768573789536,0.92858973,3314.8,3313.0,0.13289655]
[1768573789837,0.92858973,3314.7,3313.4,0.15095]
[1768573790033,0.92858973,3314.6,3313.4,0.15095]
[1768573790228,0.00280544,3314.9,3313.4,0.15095]
[1768573790429,0.92835698,3314.8,3313.4,0.15095]
[1768573790633,0.00280544,3314.9,3313.4,0.15095]
[1768573790831,0.92834982,3314.8,3313.4,0.15095]
[1768573791035,0.00280544,3314.9,3313.4,0.15095]
[1768573791340,0.9283489,3314.8,3313.5,0.28850523]
[1768573791538,0.00280544,3314.9,3313.5,0.28850523]
[1768573791738,0.92816869,3314.8,3313.5,0.28850523]
[1768573791934,0.00280544,3314.9,3313.5,0.28850523]
[1768573792131,0.92816851,3314.8,3313.5,0.28850523]
[1768573792333,0.00280544,3314.9,3313.5,0.28850523]
[1768573793032,0.00280544,3314.9,3313.6,0.13756523]
[1768573793432,0.00280544,3314.9,3313.7,0.13756523]
[1768573793633,0.00280544,3314.9,3314.0,0.13756523]
[1768573793838,0.13994557,3315.9,3314.1,0.28848523]
[1768573794039,0.13994557,3315.9,3313.2,3.019]
[1768573794040,0.92775074,3315.8,3314.3,0.28847523]
[1768573794235,0.92775074,3315.7,3314.3,0.28847523]
[1768573794434,3.019,3316.2,3314.3,0.28847523]
[1768573794634,0.13994557,3316.0,3314.3,0.28847523]
[1768573794841,0.9270702,3315.9,3314.3,0.28847523]
[1768573795043,0.9270702,3315.8,3314.3,0.28847523]
[1768573795433,0.00334547,3316.0,3314.4,0.13756523]
[1768573795633,0.92647407,3315.9,3314.4,0.13756523]
[1768573795843,0.00334547,3316.0,3314.4,0.13756523]
[1768573796441,0.00334547,3316.0,3314.6,0.13756523]
[1768573796745,0.00334547,3316.0,3314.8,0.13756523]
[1768573797130,0.00334547,3316.0,3315.0,0.13756523]
[1768573797333,0.13994557,3316.9,3315.0,0.13756523]
[1768573798238,0.14220573,3316.9,3315.0,0.13756523]
[1768573798831,0.13994557,3316.7,3314.9,0.15088]
[1768573799240,0.00226016,3316.9,3315.0,0.13756523]
[1768573799737,0.00226016,3316.9,3315.1,0.13756523]
[1768573800131,0.00226016,3316.9,3315.8,0.15084]
[1768573800442,1.21710524,3317.4,3316.0,0.13756523]
[1768573800644,1.21710524,3317.4,3316.1,0.13756523]
[1768573800949,1.21710524,3317.4,3315.7,40.93756523]
[1768573801135,1.21710524,3317.4,3316.1,0.13756523]
[1768573801335,0.13994557,3318.8,3316.7,0.13756523]
[1768573801640,5.40616881,3320.4,3315.7,40.8]
[1768573801641,0.13994557,3319.9,3317.8,0.13756523]
[1768573801835,0.13994557,3319.9,3317.3,0.13756523]
[1768573802036,0.13994557,3319.2,3316.4,0.15081]
[1768573802248,0.13994557,3318.5,3315.8,0.13756523]
[1768573802432,0.13994557,3318.1,3315.8,0.13756523]
[1768573802744,0.13994557,3317.6,3315.8,0.00331727]
[1768573803135,0.13994557,3317.3,3314.8,0.13756523]
[1768573803342,0.13994557,3317.0,3314.3,0.28847523]
[1768573803529,2.7799627,3317.2,3314.2,40.8]
[1768573803530,0.13994557,3316.5,3314.2,40.8]
[1768573803737,0.13994557,3316.3,3313.7,0.13756523]
[1768573803936,0.13994557,3315.7,3313.1,0.13756523]
[1768573804238,0.13994557,3315.5,3313.2,40.8]
[1768573804439,0.13994557,3315.3,3313.1,0.14005375]
[1768573805341,0.00358801,3315.7,3313.5,0.13756523]
[1768573805841,0.00358801,3315.7,3314.0,0.13756523]
[1768573806942,0.13994557,3317.6,3314.5,0.13756523]
[1768573807245,0.13994557,3317.4,3315.1,0.13756523]
[1768573807444,0.13994557,3317.4,3315.3,0.13756523]
[1768573807745,0.13994557,3317.4,3315.2,0.28843523]
[1768573807942,0.00307737,3317.4,3315.4,0.13756523]
[1768573808148,0.00307737,3317.4,3315.6,0.13756523]
[1768573808349,0.00307737,3317.4,3315.6,0.14076894]
[1768573808851,0.00307737,3317.4,3315.9,0.13756523]
[1768573809047,0.13994557,3318.9,3316.4,0.13756523]